[Event "55th Rubinstein Memorial-C 2019"]
[Site "Polanica-Zdroj"]
[Date "2019.08.17"]
[Round "1.10"]
[White "Wolski, Michal"]
[Black "Simon, Marek"]
[Result "0-1"]
[ECO "B13"]
[WhiteElo "1472"]
[BlackElo "1879"]
[Annotator "NA"]
[PlyCount "90"]
[EventDate "2019.08.17"]
[EventType "swiss"]
[EventCountry "POL"]
[SourceTitle "playchess.com"]
[Source "ChessBase"]
[SourceQuality "1"]
[TimeControl "40/5400+30:1800+30"]

1. e4 {[%emt 0:00:00]} c6 {[%emt 0:00:00]} 2. d4 {[%emt 0:00:00]} d5 {[%emt 0:00:00]} 3. exd5 {[%emt 0:00:00]} cxd5 {[%emt 0:00:00]} 4. Bd3 {[%emt 0:00:09]} Nc6 {[%emt 0:00:04]} 5. c3 {[%emt 0:00:13]} Qc7 {[%emt 0:00:31]} 6. Ne2 {[%emt 0:00:18]} Bg4 {[%emt 0:01:04]} 7. O-O {[%emt 0:00:33]} e6 {[%emt 0:05:46]} 8. Qe1 {[%emt 0:00:57]} Bxe2 {[%emt 0:16:34]} 9. Qxe2 {[%emt 0:00:23]} Bd6 {[%emt 0:01:39]} 10. h3 {[%emt 0:01:25]} Nge7 {[%emt 0:00:52]} 11. Nd2 {[%emt 0:04:00]} a6 {[%emt 0:02:30]} 12. Nf3 {[%emt 0:02:41]} Bf4 {[%emt 0:15:19]} 13. Bxf4 {[%emt 0:05:03]} Qxf4 {[%emt 0:00:15]} 14. Rfe1 {[%emt 0:02:12]} O-O {[%emt 0:04:34]} 15. Qc2 {[%emt 0:27:25]} g6 {[%emt 0:08:43]} 16. Ne5 {[%emt 0:02:49]} Rfc8 {[%emt 0:04:17]} 17. Qb3 {[%emt 0:08:33]} b5 {[%emt 0:08:07]} 18. Nd7 {[%emt 0:06:09]} Qc7 {[%emt 0:06:33]} 19. Nc5 {[%emt 0:00:22]} Na5 {[%emt 0:01:17]} 20. Qc2 {[%emt 0:01:01]} Nb7 {[%emt 0:07:55]} 21. Nxb7 {[%emt 0:01:26]} Qxb7 {[%emt 0:00:06]} 22. Qd2 {[%emt 0:00:44]} a5 {[%emt 0:04:58]} 23. Rab1 {[%emt 0:00:58]} b4 {[%emt 0:00:22]} 24. Rec1 {[%emt 0:01:23]} Qb6 {[%emt 0:00:41]} 25. Be2 {[%emt 0:01:19]} Nf5 {[%emt 0:00:27]} 26. Bg4 {[%emt 0:00:41]} Nd6 {[%emt 0:00:21]} 27. Bf3 {[%emt 0:00:43]} Rab8 {[%emt 0:00:22]} 28. Qd3 {[%emt 0:00:37]} Rc7 {[%emt 0:00:50]} 29. cxb4 {[%emt 0:01:54]} Rxc1+ {[%emt 0:02:05]} 30. Rxc1 {[%emt 0:00:19]} Qxb4 {[%emt 0:00:07]} 31. b3 {[%emt 0:01:41]} Nb5 {[%emt 0:00:52]} 32. Rd1 {[%emt 0:00:35]} Rc8 {[%emt 0:00:47]} 33. Be2 {[%emt 0:00:26]} Nc3 {[%emt 0:01:01]} 34. Rd2 {[%emt 0:01:09]} Ne4 {[%emt 0:02:10]} 35. Rd1 {[%emt 0:01:49]} Nc3 {[%emt 0:00:26]} 36. Rd2 {[%emt 0:02:35]} Ne4 {[%emt 0:01:26]} 37. Rd1 {[%emt 0:00:24]} Rc3 {[%emt 0:00:36]} 38. Qb5 {[%emt 0:01:47]} Rc2 {[%emt 0:00:37]} 39. a4 {[%emt 0:11:54]} Nc3 {[%emt 0:00:24]} 40. Qe8+ {[%emt 0:01:07]} Kg7 {[%emt 0:00:22]} 41. Bd3 {[%emt 0:31:04]} Rb2 {[%emt 0:31:59]} 42. Re1 {[%emt 0:01:38]} Qxd4 {[%emt 0:00:12]} 43. Re3 {[%emt 0:00:34]} Rxf2 {[%emt 0:02:59]} 44. Kxf2 {[%emt 0:01:11]} Nd1+ {[%emt 0:00:01]} 45. Kf1 {[%emt 0:00:24]} Qxe3 {[%emt 0:00:17]} 0-1

[Event "55th Rubinstein Memorial-C 2019"]
[Site "Polanica-Zdroj"]
[Date "2019.08.17"]
[Round "1.11"]
[White "Sroka, Janusz"]
[Black "Zyla, Tomasz"]
[Result "1-0"]
[ECO "B23"]
[WhiteElo "1875"]
[BlackElo "1471"]
[Annotator "NA"]
[PlyCount "45"]
[EventDate "2019.08.17"]
[EventType "swiss"]
[EventCountry "POL"]
[SourceTitle "playchess.com"]
[Source "ChessBase"]
[SourceQuality "1"]
[TimeControl "40/5400+30:1800+30"]

1. e4 {[%emt 0:00:00]} c5 {[%emt 0:00:00]} 2. Nc3 {[%emt 0:00:00]} Nc6 {[%emt 0:00:00]} 3. f4 {[%emt 0:00:07]} g6 {[%emt 0:00:22]} 4. Nf3 {[%emt 0:00:06]} Bg7 {[%emt 0:00:21]} 5. Bc4 {[%emt 0:01:02]} e6 {[%emt 0:01:36]} 6. O-O {[%emt 0:00:47]} Nge7 {[%emt 0:01:08]} 7. d3 {[%emt 0:00:44]} O-O {[%emt 0:00:51]} 8. Qe1 {[%emt 0:01:32]} d5 {[%emt 0:09:48]} 9. Bb3 {[%emt 0:00:07]} b6 {[%emt 0:06:58]} 10. Qh4 {[%emt 0:07:24]} Bb7 {[%emt 0:03:27]} 11. f5 {[%emt 0:03:13]} gxf5 {[%emt 0:52:36]} 12. Bh6 {[%emt 0:02:10]} fxe4 {[%emt 0:10:00]} 13. Ng5 {[%emt 0:05:27]} Nf5 {[%emt 0:01:54]} 14. Rxf5 {[%emt 0:02:27]} exf5 {[%emt 0:00:06]} 15. Bxg7 {[%emt 0:01:34]} Kxg7 {[%emt 0:00:57]} 16. Qxh7+ {[%emt 0:01:01]} Kf6 {[%emt 0:00:08]} 17. Nxd5+ {[%emt 0:05:12]} Ke5 {[%emt 0:04:02]} 18. Nxf7+ {[%emt 0:07:24]} Rxf7 {[%emt 0:00:06]} 19. Qxf7 {[%emt 0:00:05]} Nd4 {[%emt 0:01:43]} 20. Qg7+ {[%emt 0:02:59]} Kd6 {[%emt 0:00:37]} 21. Qxb7 {[%emt 0:04:09]} Nxb3 {[%emt 0:02:42]} 22. axb3 {[%emt 0:00:09]} Ke6 {[%emt 0:00:54]} 23. Nc7+ {[%emt 0:00:16]} 1-0

[Event "55th Rubinstein Memorial-C 2019"]
[Site "Polanica-Zdroj"]
[Date "2019.08.17"]
[Round "1.12"]
[White "Starosciak, Adrian"]
[Black "Obrochta, Lena"]
[Result "0-1"]
[ECO "B43"]
[WhiteElo "1467"]
[BlackElo "1870"]
[Annotator "NA"]
[PlyCount "50"]
[EventDate "2019.08.17"]
[EventType "swiss"]
[EventCountry "POL"]
[SourceTitle "playchess.com"]
[Source "ChessBase"]
[SourceQuality "1"]
[TimeControl "40/5400+30:1800+30"]

1. e4 {[%emt 0:00:00]} c5 {[%emt 0:00:00]} 2. Nf3 {[%emt 0:00:22]} e6 {[%emt 0:00:00]} 3. d4 {[%emt 0:01:35]} cxd4 {[%emt 0:00:00]} 4. Nxd4 {[%emt 0:00:07]} a6 {[%emt 0:00:00]} 5. Nc3 {[%emt 0:01:32]} Qc7 {[%emt 0:01:11]} 6. Bd3 {[%emt 0:03:48]} Nf6 {[%emt 0:00:34]} 7. O-O {[%emt 0:01:31]} Be7 {[%emt 0:02:53]} 8. f4 {[%emt 0:03:22]} d6 {[%emt 0:01:48]} 9. Nce2 {[%emt 0:05:30]} Nbd7 {[%emt 0:03:51]} 10. Ng3 {[%emt 0:10:10]} O-O {[%emt 0:01:21]} 11. c3 {[%emt 0:10:48]} g6 {[%emt 0:07:20]} 12. f5 {[%emt 0:07:57]} e5 {[%emt 0:00:24]} 13. Nde2 {[%emt 0:01:02]} b6 {[%emt 0:03:09]} 14. Bg5 {[%emt 0:06:33]} Bb7 {[%emt 0:01:46]} 15. h4 {[%emt 0:08:00]} Qc6 {[%emt 0:14:35]} 16. fxg6 {[%emt 0:09:05]} hxg6 {[%emt 0:02:00]} 17. h5 {[%emt 0:02:42]} d5 {[%emt 0:02:49]} 18. Qc2 {[%emt 0:07:03]} Bc5+ {[%emt 0:03:09]} 19. Kh2 {[%emt 0:00:51]} dxe4 {[%emt 0:03:37]} 20. Bc4 {[%emt 0:00:26]} Ng4+ {[%emt 0:03:21]} 21. Kh3 {[%emt 0:01:33]} Nf2+ {[%emt 0:01:32]} 22. Kh4 {[%emt 0:01:57]} b5 {[%emt 0:00:18]} 23. Bb3 {[%emt 0:00:08]} Kg7 {[%emt 0:01:29]} 24. h6+ {[%emt 0:01:56]} Kh7 {[%emt 0:00:14]} 25. Ng1 {[%emt 0:04:42]} f6 {[%emt 0:00:25]} 0-1

[Event "55th Rubinstein Memorial-C 2019"]
[Site "Polanica-Zdroj"]
[Date "2019.08.17"]
[Round "1.13"]
[White "Pyka, Roman"]
[Black "Kubik, Rafal"]
[Result "1/2-1/2"]
[ECO "A03"]
[WhiteElo "1860"]
[BlackElo "1464"]
[Annotator "NA"]
[PlyCount "88"]
[EventDate "2019.08.17"]
[EventType "swiss"]
[EventCountry "POL"]
[SourceTitle "playchess.com"]
[Source "ChessBase"]
[SourceQuality "1"]
[TimeControl "40/5400+30:1800+30"]

1. f4 {[%emt 0:00:18]} d5 {[%emt 0:00:12]} 2. b3 {[%emt 0:00:11]} g6 {[%emt 0:00:34]} 3. Bb2 {[%emt 0:00:04]} Nf6 {[%emt 0:00:07]} 4. Nf3 {[%emt 0:01:09]} Bg7 {[%emt 0:00:15]} 5. e3 {[%emt 0:02:04]} O-O {[%emt 0:00:53]} 6. Be2 {[%emt 0:01:19]} c5 {[%emt 0:01:37]} 7. O-O {[%emt 0:00:24]} Nc6 {[%emt 0:00:41]} 8. Ne5 {[%emt 0:04:58]} Qc7 {[%emt 0:04:35]} 9. Nxc6 {[%emt 0:00:20]} Qxc6 {[%emt 0:01:42]} 10. Bf3 {[%emt 0:00:49]} Bf5 {[%emt 0:02:09]} 11. d3 {[%emt 0:06:07]} Qd7 {[%emt 0:04:36]} 12. h3 {[%emt 0:05:07]} h5 {[%emt 0:07:02]} 13. Nd2 {[%emt 0:02:58]} Rfd8 {[%emt 0:02:50]} 14. Qe2 {[%emt 0:08:43]} Rac8 {[%emt 0:06:10]} 15. Rac1 {[%emt 0:10:00]} b5 {[%emt 0:06:45]} 16. Rfd1 {[%emt 0:02:49]} Qc7 {[%emt 0:03:38]} 17. Be5 {[%emt 0:11:50]} Qb6 {[%emt 0:02:24]} 18. e4 {[%emt 0:01:22]} dxe4 {[%emt 0:02:18]} 19. dxe4 {[%emt 0:00:58]} c4+ {[%emt 0:02:03]} 20. Kh2 {[%emt 0:00:46]} Be6 {[%emt 0:08:03]} 21. Nf1 {[%emt 0:01:51]} cxb3 {[%emt 0:03:14]} 22. cxb3 {[%emt 0:00:26]} a6 {[%emt 0:07:19]} 23. Rxd8+ {[%emt 0:04:55]} Qxd8 {[%emt 0:00:14]} 24. Rxc8 {[%emt 0:00:35]} Qxc8 {[%emt 0:04:18]} 25. Ne3 {[%emt 0:00:28]} Nh7 {[%emt 0:07:54]} 26. Nd5 {[%emt 0:02:34]} Bxd5 {[%emt 0:01:06]} 27. exd5 {[%emt 0:00:10]} Nf6 {[%emt 0:02:32]} 28. Qd3 {[%emt 0:03:36]} Nd7 {[%emt 0:05:00]} 29. Bxg7 {[%emt 0:01:12]} Kxg7 {[%emt 0:00:04]} 30. Qd4+ {[%emt 0:01:07]} Nf6 {[%emt 0:00:39]} 31. g4 {[%emt 0:04:18]} hxg4 {[%emt 0:02:16]} 32. hxg4 {[%emt 0:00:08]} Kg8 {[%emt 0:03:52]} 33. Kg3 {[%emt 0:01:55]} Ne8 {[%emt 0:02:22]} 34. Qa7 {[%emt 0:01:41]} Kf8 {[%emt 0:01:13]} 35. Qd4 {[%emt 0:03:07]} Kg8 {[%emt 0:00:07]} 36. Qe5 {[%emt 0:01:25]} Qc7 {[%emt 0:02:45]} 37. Qxc7 {[%emt 0:05:56]} Nxc7 {[%emt 0:00:04]} 38. b4 {[%emt 0:01:34]} Kf8 {[%emt 0:00:33]} 39. Kf2 {[%emt 0:01:48]} Ke8 {[%emt 0:00:36]} 40. Ke3 {[%emt 0:01:53]} Kd7 {[%emt 0:00:09]} 41. Kd4 {[%emt 0:30:10]} Kd6 {[%emt 0:30:11]} 42. Be4 {[%emt 0:01:08]} Na8 {[%emt 0:02:45]} 43. Bf3 {[%emt 0:00:23]} Nc7 {[%emt 0:00:21]} 44. Be4 {[%emt 0:00:13]} Na8 1/2-1/2

[Event "55th Rubinstein Memorial-C 2019"]
[Site "Polanica-Zdroj"]
[Date "2019.08.17"]
[Round "1.14"]
[White "Dahms, Medard"]
[Black "Kaliszuk, Kamil"]
[Result "1/2-1/2"]
[ECO "C68"]
[WhiteElo "1462"]
[BlackElo "1853"]
[Annotator "NA"]
[PlyCount "126"]
[EventDate "2019.08.17"]
[EventType "swiss"]
[EventCountry "POL"]
[SourceTitle "playchess.com"]
[Source "ChessBase"]
[SourceQuality "1"]
[TimeControl "40/5400+30:1800+30"]

1. e4 e5 {[%emt 0:00:00]} 2. Nf3 {[%emt 0:00:00]} Nc6 {[%emt 0:00:02]} 3. Bb5 {[%emt 0:00:34]} a6 {[%emt 0:00:06]} 4. Bxc6 {[%emt 0:01:09]} dxc6 {[%emt 0:00:08]} 5. h3 {[%emt 0:01:08]} Bd6 {[%emt 0:01:13]} 6. Nc3 {[%emt 0:00:57]} Bd7 {[%emt 0:01:49]} 7. d4 {[%emt 0:05:06]} exd4 {[%emt 0:02:39]} 8. Qxd4 {[%emt 0:03:17]} f6 {[%emt 0:00:43]} 9. Be3 {[%emt 0:02:53]} Qe7 {[%emt 0:00:55]} 10. O-O {[%emt 0:10:02]} Nh6 {[%emt 0:05:40]} 11. Rfe1 {[%emt 0:09:15]} Nf7 {[%emt 0:01:47]} 12. Nd2 {[%emt 0:12:38]} Rd8 {[%emt 0:14:01]} 13. Qa7 {[%emt 0:13:25]} Bc8 {[%emt 0:00:02]} 14. Nb3 {[%emt 0:04:41]} O-O {[%emt 0:15:10]} 15. Nc5 {[%emt 0:06:40]} b6 {[%emt 0:01:24]} 16. Nb7 {[%emt 0:06:30]} Rde8 {[%emt 0:05:47]} 17. Nxd6 {[%emt 0:01:16]} Nxd6 {[%emt 0:02:31]} 18. Bf4 {[%emt 0:01:24]} a5 {[%emt 0:07:34]} 19. Rad1 {[%emt 0:01:49]} Nb7 {[%emt 0:02:30]} 20. Qa6 {[%emt 0:02:35]} Nc5 {[%emt 0:02:40]} 21. Qe2 {[%emt 0:01:51]} Be6 {[%emt 0:02:13]} 22. f3 {[%emt 0:03:48]} b5 {[%emt 0:01:22]} 23. a3 {[%emt 0:02:38]} Rd8 {[%emt 0:05:05]} 24. Qf2 {[%emt 0:00:53]} Rxd1 {[%emt 0:07:56]} 25. Rxd1 {[%emt 0:00:28]} Rc8 {[%emt 0:00:13]} 26. Qd4 {[%emt 0:03:53]} Nb7 {[%emt 0:03:17]} 27. Qa7 {[%emt 0:00:56]} Qc5+ {[%emt 0:00:16]} 28. Qxc5 {[%emt 0:00:05]} Nxc5 {[%emt 0:00:02]} 29. Kf2 {[%emt 0:01:46]} Kf7 {[%emt 0:00:37]} 30. Ke3 {[%emt 0:01:01]} Nb7 {[%emt 0:01:32]} 31. Rd2 {[%emt 0:01:04]} a4 {[%emt 0:00:20]} 32. e5 {[%emt 0:01:17]} Na5 {[%emt 0:01:29]} 33. Kf2 {[%emt 0:00:59]} Nc4 {[%emt 0:00:47]} 34. Re2 {[%emt 0:00:25]} g5 {[%emt 0:02:32]} 35. Bc1 {[%emt 0:00:01]} Nxe5 {[%emt 0:00:09]} 36. Ne4 {[%emt 0:00:15]} Nd7 {[%emt 0:00:34]} 37. Bxg5 {[%emt 0:01:02]} Bc4 {[%emt 0:00:36]} 38. Rd2 {[%emt 0:00:19]} Bd5 {[%emt 0:02:16]} 39. Bf4 {[%emt 0:00:30]} Nb6 {[%emt 0:00:37]} 40. c3 {[%emt 0:00:09]} Nc4 {[%emt 0:00:25]} 41. Re2 {[%emt 0:30:11]} Bxe4 {[%emt 0:30:34]} 42. fxe4 {[%emt 0:00:11]} Ke6 {[%emt 0:00:11]} 43. g4 {[%emt 0:00:57]} Rd8 {[%emt 0:02:01]} 44. Bxc7 {[%emt 0:00:39]} Rd1 {[%emt 0:00:02]} 45. Bf4 {[%emt 0:01:10]} Rb1 {[%emt 0:00:09]} 46. g5 {[%emt 0:00:42]} fxg5 {[%emt 0:00:42]} 47. Bxg5 {[%emt 0:00:10]} Nxb2 {[%emt 0:01:52]} 48. Kf3 {[%emt 0:00:41]} Nc4 {[%emt 0:00:05]} 49. Kg4 {[%emt 0:00:33]} Rg1+ {[%emt 0:00:30]} 50. Kh4 {[%emt 0:00:35]} Nxa3 {[%emt 0:00:45]} 51. Be3 {[%emt 0:00:30]} Rf1 {[%emt 0:00:29]} 52. Bc5 {[%emt 0:00:30]} Nc4 {[%emt 0:00:08]} 53. Kg4 {[%emt 0:00:31]} Ne5+ {[%emt 0:00:20]} 54. Kh5 {[%emt 0:00:13]} Rf3 {[%emt 0:00:10]} 55. h4 {[%emt 0:00:41]} Rxc3 {[%emt 0:00:09]} 56. Bd4 {[%emt 0:00:04]} Rc4 {[%emt 0:00:06]} 57. Bb2 {[%emt 0:00:28]} b4 {[%emt 0:00:13]} 58. Kh6 {[%emt 0:00:21]} a3 {[%emt 0:00:07]} 59. Ba1 {[%emt 0:00:19]} b3 60. Kxh7 {[%emt 0:00:12]} Rc2 {[%emt 0:00:41]} 61. Re1 {[%emt 0:01:06]} b2 {[%emt 0:00:19]} 62. h5 {[%emt 0:00:58]} Rc1 {[%emt 0:00:20]} 63. Bxb2 {[%emt 0:00:08]} axb2 {[%emt 0:00:10]} 1/2-1/2

[Event "55th Rubinstein Memorial-C 2019"]
[Site "Polanica-Zdroj"]
[Date "2019.08.17"]
[Round "1.15"]
[White "Koscielny, Edmond"]
[Black "Bednarczyk, Mateusz"]
[Result "1-0"]
[ECO "A02"]
[WhiteElo "1841"]
[BlackElo "1459"]
[Annotator "NA"]
[PlyCount "148"]
[EventDate "2019.08.17"]
[EventType "swiss"]
[EventCountry "POL"]
[SourceTitle "playchess.com"]
[Source "ChessBase"]
[SourceQuality "1"]
[TimeControl "40/5400+30:1800+30"]

1. f4 {[%emt 0:00:00]} b6 {[%emt 0:01:23]} 2. Nf3 {[%emt 0:00:00]} Bb7 {[%emt 0:00:11]} 3. e3 {[%emt 0:00:56]} e6 {[%emt 0:03:39]} 4. b3 {[%emt 0:01:18]} Nf6 {[%emt 0:00:35]} 5. Bb2 {[%emt 0:00:16]} Be7 {[%emt 0:00:14]} 6. Nc3 {[%emt 0:02:04]} O-O {[%emt 0:04:16]} 7. Be2 {[%emt 0:01:35]} c5 {[%emt 0:00:39]} 8. O-O {[%emt 0:00:33]} d5 {[%emt 0:01:40]} 9. d4 {[%emt 0:01:57]} Nc6 {[%emt 0:00:38]} 10. Ne5 {[%emt 0:02:49]} cxd4 {[%emt 0:08:35]} 11. Nxc6 {[%emt 0:00:03]} Bxc6 {[%emt 0:00:07]} 12. exd4 {[%emt 0:00:23]} Qc7 {[%emt 0:08:18]} 13. a3 {[%emt 0:10:06]} Bd6 {[%emt 0:00:17]} 14. g3 {[%emt 0:00:19]} a6 {[%emt 0:01:54]} 15. Qe1 {[%emt 0:06:07]} b5 {[%emt 0:06:39]} 16. Bd3 {[%emt 0:04:07]} Bd7 {[%emt 0:01:33]} 17. Nd1 {[%emt 0:07:12]} h5 {[%emt 0:14:22]} 18. Ne3 {[%emt 0:06:24]} h4 {[%emt 0:04:08]} 19. Rc1 {[%emt 0:08:52]} Rfb8 {[%emt 0:07:15]} 20. Qe2 {[%emt 0:10:31]} hxg3 {[%emt 0:17:37]} 21. hxg3 {[%emt 0:00:09]} Qb7 {[%emt 0:00:11]} 22. Kg2 {[%emt 0:07:27]} g6 {[%emt 0:01:04]} 23. Rh1 {[%emt 0:01:30]} Kg7 {[%emt 0:00:47]} 24. Qf3 {[%emt 0:08:40]} Qc7 {[%emt 0:01:16]} 25. Rh4 {[%emt 0:02:11]} Rh8 {[%emt 0:00:55]} 26. Rch1 {[%emt 0:00:16]} Rxh4 {[%emt 0:01:10]} 27. Rxh4 {[%emt 0:00:02]} Rh8 {[%emt 0:00:29]} 28. Rxh8 {[%emt 0:00:10]} Kxh8 {[%emt 0:00:04]} 29. Ng4 {[%emt 0:00:10]} Nxg4 {[%emt 0:00:32]} 30. Qxg4 {[%emt 0:00:10]} Kg7 {[%emt 0:00:08]} 31. Qh4 {[%emt 0:03:33]} Bc8 {[%emt 0:04:13]} 32. Kf3 {[%emt 0:00:45]} Qe7 {[%emt 0:02:17]} 33. Qxe7 {[%emt 0:00:48]} Bxe7 {[%emt 0:00:03]} 34. c4 {[%emt 0:00:28]} Bd7 {[%emt 0:01:03]} 35. c5 {[%emt 0:01:45]} Bc6 {[%emt 0:02:10]} 36. Bc3 {[%emt 0:00:33]} Bd8 {[%emt 0:00:10]} 37. g4 {[%emt 0:01:25]} f5 {[%emt 0:00:51]} 38. gxf5 {[%emt 0:00:26]} gxf5 {[%emt 0:01:22]} 39. a4 {[%emt 0:02:49]} Kf7 {[%emt 0:01:47]} 40. axb5 {[%emt 0:00:26]} axb5 {[%emt 0:00:06]} 41. Be2 {[%emt 0:30:20]} Ke7 {[%emt 0:33:18]} 42. Ke3 {[%emt 0:00:28]} Be8 {[%emt 0:00:14]} 43. Be1 {[%emt 0:00:10]} Bc6 {[%emt 0:02:12]} 44. Kd3 {[%emt 0:04:35]} Kd7 {[%emt 0:00:39]} 45. Kc2 {[%emt 0:00:27]} Kc8 {[%emt 0:00:29]} 46. Kb2 {[%emt 0:00:20]} Kb7 {[%emt 0:00:44]} 47. Bh5 {[%emt 0:00:45]} Bf6 {[%emt 0:00:40]} 48. Bf2 {[%emt 0:00:52]} Bd7 {[%emt 0:00:22]} 49. Kc3 {[%emt 0:00:25]} Bd8 {[%emt 0:00:35]} 50. Kb4 {[%emt 0:00:49]} Bc6 {[%emt 0:00:26]} 51. Kc3 {[%emt 0:01:53]} Ba5+ {[%emt 0:00:34]} 52. Kd3 {[%emt 0:00:32]} Bd8 {[%emt 0:00:10]} 53. Ke3 {[%emt 0:00:27]} Bf6 {[%emt 0:00:39]} 54. Be1 {[%emt 0:00:30]} Ka6 {[%emt 0:00:42]} 55. Bf7 {[%emt 0:02:29]} Bd7 {[%emt 0:00:33]} 56. Bb4 {[%emt 0:00:34]} Kb7 {[%emt 0:00:26]} 57. Ba5 {[%emt 0:00:13]} Kc6 {[%emt 0:00:26]} 58. Kd3 {[%emt 0:00:54]} Kb7 {[%emt 0:00:36]} 59. Bh5 {[%emt 0:00:47]} Kc6 {[%emt 0:00:33]} 60. Be1 {[%emt 0:01:41]} Kb7 {[%emt 0:00:17]} 61. Bf7 {[%emt 0:00:19]} Kc6 {[%emt 0:00:31]} 62. Bf2 {[%emt 0:00:24]} Kb7 {[%emt 0:00:27]} 63. Kc3 {[%emt 0:00:13]} Kc6 {[%emt 0:00:35]} 64. Kb4 {[%emt 0:00:27]} Bd8 {[%emt 0:00:02]} 65. Bh5 {[%emt 0:00:36]} Bc8 {[%emt 0:00:46]} 66. Be8+ {[%emt 0:00:27]} Bd7 {[%emt 0:00:48]} 67. Bxd7+ {[%emt 0:00:14]} Kxd7 {[%emt 0:00:03]} 68. Kxb5 {[%emt 0:00:13]} Bf6 {[%emt 0:00:18]} 69. Kb6 {[%emt 0:00:27]} Bd8+ {[%emt 0:00:33]} 70. Kb7 {[%emt 0:00:17]} Bc7 {[%emt 0:00:03]} 71. Be3 {[%emt 0:00:37]} Kd8 {[%emt 0:00:24]} 72. b4 {[%emt 0:00:19]} Kd7 {[%emt 0:00:06]} 73. b5 {[%emt 0:00:10]} Bd8 {[%emt 0:00:28]} 74. b6 {[%emt 0:00:15]} Ke8 1-0

[Event "55th Rubinstein Memorial-C 2019"]
[Site "Polanica-Zdroj"]
[Date "2019.08.17"]
[Round "1.16"]
[White "Jedrzejko, Martyna"]
[Black "Mike, Patryk"]
[Result "1/2-1/2"]
[ECO "C50"]
[WhiteElo "1456"]
[BlackElo "1840"]
[Annotator "NA"]
[PlyCount "76"]
[EventDate "2019.08.17"]
[EventType "swiss"]
[EventCountry "POL"]
[SourceTitle "playchess.com"]
[Source "ChessBase"]
[SourceQuality "1"]
[TimeControl "40/5400+30:1800+30"]

1. e4 {[%emt 0:00:00]} e5 {[%emt 0:00:00]} 2. Nf3 {[%emt 0:00:00]} Nc6 {[%emt 0:00:00]} 3. Bc4 {[%emt 0:00:10]} Bc5 {[%emt 0:00:49]} 4. O-O {[%emt 0:00:25]} d6 {[%emt 0:04:23]} 5. c3 {[%emt 0:02:08]} Nf6 {[%emt 0:01:22]} 6. d3 {[%emt 0:00:31]} O-O {[%emt 0:03:56]} 7. Bb3 {[%emt 0:03:54]} Be6 {[%emt 0:15:46]} 8. Bc2 {[%emt 0:00:41]} Bb6 {[%emt 0:04:23]} 9. Re1 {[%emt 0:02:29]} Re8 {[%emt 0:02:17]} 10. h3 {[%emt 0:04:28]} d5 {[%emt 0:05:30]} 11. Ng5 {[%emt 0:07:41]} Bc8 {[%emt 0:11:28]} 12. exd5 {[%emt 0:04:30]} Nxd5 {[%emt 0:01:55]} 13. Qh5 {[%emt 0:02:56]} h6 {[%emt 0:10:41]} 14. Qxf7+ {[%emt 0:06:12]} Kh8 {[%emt 0:00:10]} 15. Ne4 {[%emt 0:09:53]} Be6 {[%emt 0:02:54]} 16. Qh5 {[%emt 0:01:46]} Nf6 {[%emt 0:01:56]} 17. Qe2 {[%emt 0:03:38]} Nxe4 {[%emt 0:02:10]} 18. Qxe4 {[%emt 0:02:17]} Bd5 {[%emt 0:01:27]} 19. Qg4 {[%emt 0:01:08]} Qf6 {[%emt 0:01:39]} 20. Be3 {[%emt 0:01:15]} Rf8 {[%emt 0:02:22]} 21. Qg3 {[%emt 0:04:46]} Rf7 {[%emt 0:04:56]} 22. Nd2 {[%emt 0:02:29]} Raf8 {[%emt 0:01:36]} 23. Bxb6 {[%emt 0:02:16]} axb6 {[%emt 0:00:28]} 24. f3 {[%emt 0:02:18]} Qd6 {[%emt 0:01:39]} 25. Kh1 {[%emt 0:02:10]} Rf4 {[%emt 0:03:09]} 26. Qf2 {[%emt 0:06:26]} g5 {[%emt 0:01:16]} 27. Qe2 {[%emt 0:01:42]} h5 {[%emt 0:01:14]} 28. Bb3 {[%emt 0:05:16]} g4 {[%emt 0:02:37]} 29. Bxd5 {[%emt 0:06:31]} Qxd5 {[%emt 0:00:31]} 30. hxg4 {[%emt 0:00:58]} hxg4 {[%emt 0:00:52]} 31. Rf1 {[%emt 0:03:05]} g3 {[%emt 0:01:18]} 32. Qe3 {[%emt 0:04:59]} Qf7 {[%emt 0:01:26]} 33. Rfd1 {[%emt 0:00:47]} Qh5+ {[%emt 0:02:40]} 34. Kg1 {[%emt 0:00:11]} Qh2+ {[%emt 0:05:12]} 35. Kf1 {[%emt 0:00:05]} Rd8 {[%emt 0:01:00]} 36. Ne4 {[%emt 0:02:06]} Rdf8 {[%emt 0:01:45]} 37. Nd2 {[%emt 0:00:35]} Rd8 {[%emt 0:00:05]} 38. Ne4 {[%emt 0:02:51]} Rdf8 1/2-1/2

[Event "55th Rubinstein Memorial-C 2019"]
[Site "Polanica-Zdroj"]
[Date "2019.08.17"]
[Round "1.17"]
[White "Bogdanov, Maxim A."]
[Black "Furgal, Grzegorz"]
[Result "1/2-1/2"]
[ECO "C11"]
[WhiteElo "1763"]
[BlackElo "1456"]
[Annotator "NA"]
[PlyCount "74"]
[EventDate "2019.08.17"]
[EventType "swiss"]
[EventCountry "POL"]
[SourceTitle "playchess.com"]
[Source "ChessBase"]
[SourceQuality "1"]
[TimeControl "40/5400+30:1800+30"]

1. d4 {[%emt 0:00:00]} e6 {[%emt 0:00:00]} 2. e4 {[%emt 0:00:00]} d5 {[%emt 0:00:00]} 3. Nc3 {[%emt 0:00:00]} Nf6 {[%emt 0:00:07]} 4. e5 {[%emt 0:00:00]} Nfd7 {[%emt 0:00:16]} 5. f4 {[%emt 0:00:00]} c5 {[%emt 0:00:15]} 6. Nf3 {[%emt 0:00:04]} Nc6 {[%emt 0:00:34]} 7. Be3 {[%emt 0:00:04]} cxd4 {[%emt 0:01:35]} 8. Nxd4 {[%emt 0:00:06]} Qb6 {[%emt 0:01:28]} 9. Qd2 {[%emt 0:03:35]} Qxb2 {[%emt 0:04:31]} 10. Rb1 {[%emt 0:00:07]} Qa3 {[%emt 0:00:05]} 11. Ndb5 {[%emt 0:29:09]} Qa5 {[%emt 0:26:59]} 12. Nd6+ {[%emt 0:00:24]} Bxd6 {[%emt 0:00:26]} 13. exd6 {[%emt 0:00:07]} a6 {[%emt 0:03:14]} 14. Be2 {[%emt 0:00:18]} Qa3 {[%emt 0:05:14]} 15. O-O {[%emt 0:00:12]} Qxd6 {[%emt 0:00:09]} 16. f5 {[%emt 0:00:56]} O-O {[%emt 0:01:35]} 17. f6 {[%emt 0:02:59]} Nxf6 {[%emt 0:01:41]} 18. Rxf6 {[%emt 0:00:19]} gxf6 {[%emt 0:02:49]} 19. Bh6 {[%emt 0:00:10]} Rd8 {[%emt 0:05:39]} 20. Rf1 {[%emt 0:02:41]} Qe5 {[%emt 0:06:05]} 21. Rf3 {[%emt 0:05:57]} Kh8 {[%emt 0:04:39]} 22. Bd3 {[%emt 0:00:57]} Rg8 {[%emt 0:06:26]} 23. Ne2 {[%emt 0:18:00]} Nd4 {[%emt 0:02:57]} 24. Nxd4 {[%emt 0:00:59]} Qxd4+ {[%emt 0:00:05]} 25. Be3 {[%emt 0:00:36]} Qh4 {[%emt 0:06:30]} 26. Kh1 {[%emt 0:10:14]} d4 {[%emt 0:04:55]} 27. Rh3 {[%emt 0:05:37]} Qxh3 {[%emt 0:00:55]} 28. gxh3 {[%emt 0:00:06]} dxe3 {[%emt 0:00:02]} 29. Qxe3 {[%emt 0:01:12]} Bd7 {[%emt 0:00:19]} 30. Be4 {[%emt 0:01:27]} Bc6 {[%emt 0:00:30]} 31. Bxc6 {[%emt 0:01:49]} bxc6 {[%emt 0:00:04]} 32. h4 {[%emt 0:01:38]} Rab8 {[%emt 0:02:23]} 33. Qe1 {[%emt 0:00:39]} Rg7 {[%emt 0:00:31]} 34. Qf1 {[%emt 0:00:17]} Rbg8 {[%emt 0:06:49]} 35. Qxf6 {[%emt 0:00:15]} h5 {[%emt 0:02:23]} 36. Qh6+ {[%emt 0:00:43]} Rh7 {[%emt 0:00:05]} 37. Qf6+ {[%emt 0:00:06]} Rhg7 {[%emt 0:00:06]} 1/2-1/2